[Event "Kragero Resort A 2020"]
[Site "Kragero"]
[Date "2020.02.22"]
[Round "8.21"]
[White "Thorgeirsson, Jon Kristinn"]
[Black "Abdrlauf, Elham"]
[Result "1-0"]
[ECO "B15"]
[WhiteElo "2269"]
[BlackElo "2381"]
[Annotator "ChessBase"]
[PlyCount "131"]
[EventDate "2020.02.19"]
[EventType "swiss"]
[EventCountry "NOR"]
[SourceTitle "playchess.com"]
[Source "ChessBase"]
[SourceQuality "1"]
[TimeControl "5400+30"]

1. e4 {[%emt 0:00:00]} c6 {[%emt 0:00:00]} 2. Nc3 {[%emt 0:00:00]} d5 {[%emt 0:00:00]} 3. Nf3 {[%emt 0:00:00]} dxe4 {[%emt 0:00:00]} 4. Nxe4 {[%emt 0:00:05]} Nf6 {[%emt 0:00:00]} 5. Nxf6+ {[%emt 0:00:07]} exf6 {[%emt 0:00:00]} 6. d4 {[%emt 0:00:08]} Bd6 {[%emt 0:00:00]} 7. Bd3 {[%emt 0:00:48]} O-O {[%emt 0:00:00]} 8. O-O {[%emt 0:00:07]} Re8 {[%emt 0:00:00]} 9. c3 {[%emt 0:00:45]} Nd7 {[%emt 0:00:55]} 10. Qc2 {[%emt 0:00:37]} Nf8 {[%emt 0:00:04]} 11. Bf5 {[%emt 0:01:08]} Be6 {[%emt 0:01:10]} 12. Bxe6 {[%emt 0:00:54]} fxe6 {[%emt 0:00:15]} 13. Re1 {[%emt 0:00:13]} Qc7 {[%emt 0:00:11]} 14. h3 {[%emt 0:00:31]} Ng6 {[%emt 0:00:08]} 15. Qb3 {[%emt 0:02:46]} Qf7 {[%emt 0:00:37]} 16. Be3 {[%emt 0:01:38]} b5 {[%emt 0:01:44]} 17. a4 {[%emt 0:00:30]} a6 {[%emt 0:00:32]} 18. Ra2 {[%emt 0:05:27]} Rab8 {[%emt 0:05:36]} 19. axb5 {[%emt 0:00:22]} axb5 {[%emt 0:00:06]} 20. Rea1 {[%emt 0:01:05]} e5 {[%emt 0:00:19]} 21. Qxf7+ {[%emt 0:00:41]} Kxf7 {[%emt 0:00:01]} 22. Ra6 {[%emt 0:00:13]} Rbc8 {[%emt 0:00:22]} 23. d5 {[%emt 0:01:19]} Ne7 {[%emt 0:00:45]} 24. dxc6 {[%emt 0:01:52]} Rxc6 {[%emt 0:00:34]} 25. Rxc6 {[%emt 0:02:43]} Nxc6 {[%emt 0:00:03]} 26. Ra6 {[%emt 0:00:08]} Rc8 {[%emt 0:00:04]} 27. b4 {[%emt 0:02:50]} e4 {[%emt 0:04:10]} 28. Nd2 {[%emt 0:01:56]} f5 {[%emt 0:00:59]} 29. Rb6 {[%emt 0:00:15]} Ke6 {[%emt 0:03:47]} 30. Rxb5 {[%emt 0:01:03]} Ra8 {[%emt 0:05:09]} 31. Rb6 {[%emt 0:02:14]} Ra1+ {[%emt 0:00:05]} 32. Nf1 {[%emt 0:00:06]} Ne5 {[%emt 0:00:01]} 33. Bf4 {[%emt 0:07:36]} g5 {[%emt 0:08:12]} 34. Bxg5 {[%emt 0:06:25]} Nc4 {[%emt 0:00:48]} 35. Rc6 {[%emt 0:00:18]} Kd5 {[%emt 0:00:09]} 36. Rc8 {[%emt 0:00:11]} f4 {[%emt 0:00:20]} 37. Bxf4 {[%emt 0:00:05]} Bxf4 {[%emt 0:01:35]} 38. Rc5+ {[%emt 0:00:07]} Kd6 {[%emt 0:00:04]} 39. Rxc4 {[%emt 0:00:11]} e3 {[%emt 0:00:01]} 40. Re4 {[%emt 0:00:19]} Kd5 {[%emt 0:02:03]} 41. Re8 {[%emt 0:00:16]} Be5 {[%emt 0:00:31]} 42. c4+ {[%emt 0:01:36]} Ke4 {[%emt 0:00:20]} 43. fxe3 {[%emt 0:00:05]} h5 {[%emt 0:00:10]} 44. b5 {[%emt 0:01:42]} Rb1 {[%emt 0:00:21]} 45. g4 {[%emt 0:02:29]} h4 {[%emt 0:01:16]} 46. Kf2 {[%emt 0:00:51]} Rb2+ {[%emt 0:00:07]} 47. Ke1 {[%emt 0:00:08]} Re2+ {[%emt 0:00:06]} 48. Kd1 {[%emt 0:00:14]} Ra2 {[%emt 0:00:48]} 49. c5 {[%emt 0:07:35]} Kd5 {[%emt 0:02:45]} 50. c6 {[%emt 0:01:48]} Bc7 {[%emt 0:00:38]} 51. Re7 {[%emt 0:00:12]} Bd6 {[%emt 0:03:38]} 52. c7 {[%emt 0:01:09]} Ra8 {[%emt 0:00:21]} 53. b6 {[%emt 0:02:19]} Kc6 {[%emt 0:00:13]} 54. Re6 {[%emt 0:00:26]} Kd7 {[%emt 0:00:20]} 55. Rg6 {[%emt 0:00:59]} Bc5 {[%emt 0:00:24]} 56. Ke2 {[%emt 0:00:21]} Re8 {[%emt 0:00:29]} 57. Kd3 {[%emt 0:00:22]} Kc8 {[%emt 0:00:29]} 58. Kc4 {[%emt 0:00:58]} Ba3 {[%emt 0:00:07]} 59. Kd5 {[%emt 0:00:46]} Kb7 {[%emt 0:00:12]} 60. e4 {[%emt 0:00:35]} Rf8 {[%emt 0:00:21]} 61. Ne3 {[%emt 0:00:24]} Bb4 {[%emt 0:01:52]} 62. Nc4 {[%emt 0:00:27]} Rf1 {[%emt 0:01:22]} 63. Rg8 {[%emt 0:00:11]} Bf8 {[%emt 0:00:34]} 64. Nd6+ {[%emt 0:00:11]} Kxb6 {[%emt 0:00:08]} 65. c8=Q {[%emt 0:00:08]} Rd1+ {[%emt 0:00:17]} 66. Ke5 {[%emt 0:00:16]} 1-0

[Event "Kragero Resort A 2020"]
[Site "Kragero"]
[Date "2020.02.22"]
[Round "8.22"]
[White "Woithe, Daniel"]
[Black "Kjartansson, David"]
[Result "0-1"]
[ECO "B48"]
[WhiteElo "2067"]
[BlackElo "2356"]
[Annotator "ChessBase"]
[PlyCount "41"]
[EventDate "2020.02.19"]
[EventType "swiss"]
[EventCountry "NOR"]
[SourceTitle "playchess.com"]
[Source "ChessBase"]
[SourceQuality "1"]
[TimeControl "5400+30"]

1. e4 {[%emt 0:00:00]} c5 {[%emt 0:00:00]} 2. Nf3 {[%emt 0:00:00]} e6 {[%emt 0:00:00]} 3. d4 {[%emt 0:00:00]} cxd4 {[%emt 0:00:00]} 4. Nxd4 {[%emt 0:00:00]} Nc6 {[%emt 0:00:00]} 5. Nc3 {[%emt 0:01:24]} Qc7 {[%emt 0:00:12]} 6. Be3 {[%emt 0:00:42]} a6 {[%emt 0:00:07]} 7. Qf3 {[%emt 0:00:31]} d6 {[%emt 0:01:09]} 8. O-O-O {[%emt 0:03:48]} Nf6 {[%emt 0:01:01]} 9. Qg3 {[%emt 0:11:11]} Be7 {[%emt 0:09:07]} 10. f3 {[%emt 0:08:01]} Bd7 {[%emt 0:07:02]} 11. Qf2 {[%emt 0:06:34]} b5 {[%emt 0:00:39]} 12. g4 {[%emt 0:14:34]} h6 {[%emt 0:01:12]} 13. h4 {[%emt 0:00:55]} b4 {[%emt 0:00:32]} 14. Nce2 {[%emt 0:00:10]} d5 {[%emt 0:08:54]} 15. Nxc6 {[%emt 0:21:20]} Bxc6 {[%emt 0:00:17]} 16. e5 {[%emt 0:14:00]} Nd7 {[%emt 0:01:03]} 17. Bf4 {[%emt 0:02:59]} a5 {[%emt 0:12:51]} 18. Nd4 {[%emt 0:00:35]} a4 {[%emt 0:00:35]} 19. Bb5 {[%emt 0:01:11]} Bxb5 {[%emt 0:00:34]} 20. Nxb5 {[%emt 0:00:05]} Qc4 {[%emt 0:00:15]} 21. Qf1 {[%emt 0:00:50]} 0-1

[Event "Kragero Resort A 2020"]
[Site "Kragero"]
[Date "2020.02.22"]
[Round "8.23"]
[White "Sjoberg, Isak"]
[Black "Stefansson, Vignir Vatnar"]
[Result "1/2-1/2"]
[ECO "B01"]
[WhiteElo "2218"]
[BlackElo "2323"]
[Annotator "ChessBase"]
[PlyCount "86"]
[EventDate "2020.02.19"]
[EventType "swiss"]
[EventCountry "NOR"]
[SourceTitle "playchess.com"]
[Source "ChessBase"]
[SourceQuality "1"]
[TimeControl "5400+30"]

1. e4 {[%emt 0:00:00]} d5 {[%emt 0:01:02]} 2. exd5 {[%emt 0:00:00]} Qxd5 {[%emt 0:00:18]} 3. Nc3 {[%emt 0:00:00]} Qd6 {[%emt 0:00:03]} 4. d4 {[%emt 0:01:27]} Nf6 {[%emt 0:00:05]} 5. Nf3 {[%emt 0:00:18]} c6 {[%emt 0:00:04]} 6. g3 {[%emt 0:00:17]} Bf5 {[%emt 0:00:04]} 7. Bg2 {[%emt 0:00:29]} e6 {[%emt 0:00:04]} 8. O-O {[%emt 0:02:05]} h6 {[%emt 0:00:23]} 9. Nh4 {[%emt 0:07:14]} Bh7 {[%emt 0:00:20]} 10. f4 {[%emt 0:00:07]} Be7 {[%emt 0:07:23]} 11. f5 {[%emt 0:07:57]} O-O {[%emt 0:00:08]} 12. fxe6 {[%emt 0:06:30]} Qxe6 {[%emt 0:00:07]} 13. Re1 {[%emt 0:07:40]} Qd7 {[%emt 0:00:55]} 14. Nf3 {[%emt 0:00:44]} Bd6 {[%emt 0:03:31]} 15. Ne2 {[%emt 0:08:17]} Na6 {[%emt 0:08:45]} 16. a3 {[%emt 0:00:43]} Qf5 {[%emt 0:18:04]} 17. c4 {[%emt 0:02:27]} Qd3 {[%emt 0:00:16]} 18. Qxd3 {[%emt 0:06:48]} Bxd3 {[%emt 0:00:02]} 19. b3 {[%emt 0:00:12]} Rfe8 {[%emt 0:01:48]} 20. Ra2 {[%emt 0:05:53]} Rad8 {[%emt 0:02:11]} 21. Rd2 {[%emt 0:03:07]} Be4 {[%emt 0:02:36]} 22. Red1 {[%emt 0:06:52]} Ng4 {[%emt 0:05:30]} 23. Ra2 {[%emt 0:01:31]} Bb1 {[%emt 0:01:15]} 24. Rb2 {[%emt 0:00:21]} Bh7 {[%emt 0:00:16]} 25. b4 {[%emt 0:07:10]} Ne3 {[%emt 0:00:16]} 26. Bxe3 {[%emt 0:00:04]} Rxe3 {[%emt 0:00:05]} 27. c5 {[%emt 0:00:13]} Be7 {[%emt 0:03:02]} 28. Ra2 {[%emt 0:03:58]} Bf6 {[%emt 0:01:24]} 29. Rdd2 {[%emt 0:00:43]} Nc7 {[%emt 0:02:13]} 30. Ne5 {[%emt 0:02:59]} Bg5 {[%emt 0:07:21]} 31. Nf3 {[%emt 0:02:29]} Bf6 {[%emt 0:14:18]} 32. Ne5 {[%emt 0:00:26]} Nb5 {[%emt 0:02:17]} 33. Ng4 {[%emt 0:02:09]} Rd3 {[%emt 0:03:54]} 34. Nxf6+ {[%emt 0:00:46]} gxf6 {[%emt 0:00:01]} 35. a4 {[%emt 0:01:53]} Nc7 {[%emt 0:04:35]} 36. b5 {[%emt 0:01:34]} cxb5 {[%emt 0:00:58]} 37. axb5 {[%emt 0:00:05]} Nxb5 {[%emt 0:01:57]} 38. Bxb7 {[%emt 0:00:16]} Nxd4 {[%emt 0:01:45]} 39. Nxd4 {[%emt 0:00:57]} R8xd4 {[%emt 0:00:37]} 40. Rxd3 {[%emt 0:00:01]} Rxd3 {[%emt 0:01:21]} 41. Rxa7 {[%emt 0:01:02]} Rc3 {[%emt 0:00:14]} 42. c6 {[%emt 0:00:38]} Kg7 {[%emt 0:00:19]} 43. Ra4 {[%emt 0:00:56]} Bd3 {[%emt 0:00:14]} 1/2-1/2

[Event "Kragero Resort A 2020"]
[Site "Kragero"]
[Date "2020.02.22"]
[Round "8.24"]
[White "Storme, Isak"]
[Black "Kizatbay, Abyl"]
[Result "1-0"]
[ECO "B93"]
[WhiteElo "2314"]
[BlackElo "2142"]
[Annotator "ChessBase"]
[PlyCount "59"]
[EventDate "2020.02.19"]
[EventType "swiss"]
[EventCountry "NOR"]
[SourceTitle "playchess.com"]
[Source "ChessBase"]
[SourceQuality "1"]
[TimeControl "5400+30"]

1. e4 {[%emt 0:00:00]} c5 {[%emt 0:00:00]} 2. Nf3 {[%emt 0:00:00]} d6 {[%emt 0:00:00]} 3. d4 {[%emt 0:00:00]} cxd4 {[%emt 0:00:00]} 4. Nxd4 {[%emt 0:00:00]} Nf6 {[%emt 0:00:00]} 5. Nc3 {[%emt 0:00:00]} a6 {[%emt 0:00:00]} 6. f4 {[%emt 0:00:01]} e5 {[%emt 0:10:32]} 7. Nf3 {[%emt 0:00:05]} Qc7 {[%emt 0:01:30]} 8. a4 {[%emt 0:00:13]} Be7 {[%emt 0:06:33]} 9. Bd3 {[%emt 0:00:06]} b6 {[%emt 0:02:05]} 10. O-O {[%emt 0:00:24]} O-O {[%emt 0:04:12]} 11. Kh1 {[%emt 0:00:51]} Nbd7 {[%emt 0:05:15]} 12. Qe1 {[%emt 0:03:34]} Bb7 {[%emt 0:04:13]} 13. Nh4 {[%emt 0:01:15]} Rfe8 {[%emt 0:02:18]} 14. Nf5 {[%emt 0:03:54]} Bf8 {[%emt 0:00:08]} 15. Qg3 {[%emt 0:04:29]} Kh8 {[%emt 0:03:54]} 16. fxe5 {[%emt 0:06:15]} dxe5 {[%emt 0:05:55]} 17. Qh4 {[%emt 0:02:29]} Nc5 {[%emt 0:16:29]} 18. Nxg7 {[%emt 0:05:25]} Bxg7 {[%emt 0:00:12]} 19. Rxf6 {[%emt 0:00:19]} Qe7 {[%emt 0:04:03]} 20. Bg5 {[%emt 0:00:19]} Ne6 {[%emt 0:00:15]} 21. Nd5 {[%emt 0:03:14]} Nxg5 {[%emt 0:04:38]} 22. Nxe7 {[%emt 0:00:13]} Bxf6 {[%emt 0:00:04]} 23. Nf5 {[%emt 0:02:33]} Nxe4 {[%emt 0:03:17]} 24. Qh6 {[%emt 0:03:48]} Re6 {[%emt 0:00:33]} 25. Bc4 {[%emt 0:02:12]} Rg8 {[%emt 0:04:03]} 26. Bxe6 {[%emt 0:00:45]} fxe6 {[%emt 0:00:42]} 27. Nd6 {[%emt 0:03:47]} Nf2+ {[%emt 0:01:46]} 28. Kg1 {[%emt 0:00:07]} Rxg2+ {[%emt 0:00:18]} 29. Kf1 {[%emt 0:00:07]} Ng4 {[%emt 0:02:20]} 30. Qf8# {[%emt 0:00:13]} 1-0

[Event "Kragero Resort A 2020"]
[Site "Kragero"]
[Date "2020.02.22"]
[Round "8.25"]
[White "Eliseev, Sergey"]
[Black "Khachatryan, Vahagn"]
[Result "1-0"]
[ECO "D30"]
[WhiteElo "1947"]
[BlackElo "2276"]
[Annotator "ChessBase"]
[PlyCount "109"]
[EventDate "2020.02.19"]
[EventType "swiss"]
[EventCountry "NOR"]
[SourceTitle "playchess.com"]
[Source "ChessBase"]
[SourceQuality "1"]
[TimeControl "5400+30"]

1. d4 {[%emt 0:00:00]} d5 {[%emt 0:00:02]} 2. c4 {[%emt 0:00:27]} c6 {[%emt 0:00:03]} 3. Nf3 {[%emt 0:00:34]} e6 {[%emt 0:00:40]} 4. g3 {[%emt 0:01:02]} dxc4 {[%emt 0:01:29]} 5. Bg2 {[%emt 0:00:40]} b5 {[%emt 0:01:25]} 6. O-O {[%emt 0:05:01]} Nd7 {[%emt 0:00:43]} 7. a4 {[%emt 0:04:49]} Bb7 {[%emt 0:00:32]} 8. Ne5 {[%emt 0:12:11]} Nxe5 {[%emt 0:03:08]} 9. dxe5 {[%emt 0:02:58]} Qc7 {[%emt 0:00:28]} 10. Nc3 {[%emt 0:11:11]} Bb4 {[%emt 0:30:58]} 11. axb5 {[%emt 0:04:40]} Ne7 {[%emt 0:00:11]} 12. bxc6 {[%emt 0:06:04]} Nxc6 {[%emt 0:02:04]} 13. Qa4 {[%emt 0:02:38]} O-O {[%emt 0:09:04]} 14. Nb5 {[%emt 0:13:12]} Qe7 {[%emt 0:08:08]} 15. Bf4 {[%emt 0:01:15]} Na5 {[%emt 0:16:00]} 16. Bxb7 {[%emt 0:01:37]} Nxb7 {[%emt 0:00:16]} 17. Nxa7 {[%emt 0:09:12]} Qc5 {[%emt 0:07:29]} 18. Be3 {[%emt 0:00:35]} Qa5 {[%emt 0:01:01]} 19. Qxa5 {[%emt 0:01:02]} Nxa5 {[%emt 0:00:21]} 20. Ra4 {[%emt 0:00:20]} Nc6 {[%emt 0:03:25]} 21. Rfa1 {[%emt 0:00:48]} Nxa7 {[%emt 0:02:06]} 22. Rxb4 {[%emt 0:00:46]} Nc6 {[%emt 0:00:25]} 23. Rxa8 {[%emt 0:00:07]} Rxa8 {[%emt 0:00:11]} 24. Rxc4 {[%emt 0:00:38]} Nxe5 {[%emt 0:00:04]} 25. Rc7 {[%emt 0:01:24]} h6 {[%emt 0:03:13]} 26. Bd4 {[%emt 0:01:24]} Ng4 {[%emt 0:00:16]} 27. b4 {[%emt 0:05:45]} Rb8 {[%emt 0:00:56]} 28. Rc4 {[%emt 0:01:49]} Nf6 {[%emt 0:01:47]} 29. Bxf6 {[%emt 0:00:34]} gxf6 {[%emt 0:00:01]} 30. Kf1 {[%emt 0:00:53]} Kf8 {[%emt 0:04:02]} 31. Kg2 {[%emt 0:00:14]} Ke7 {[%emt 0:00:36]} 32. Kf3 {[%emt 0:00:20]} f5 {[%emt 0:00:32]} 33. Ke3 {[%emt 0:03:19]} Kd6 {[%emt 0:01:10]} 34. Kd3 {[%emt 0:00:45]} Ra8 {[%emt 0:00:03]} 35. Rh4 {[%emt 0:01:15]} Ra3+ {[%emt 0:00:34]} 36. Kc4 {[%emt 0:02:56]} Ra2 {[%emt 0:00:39]} 37. Rxh6 {[%emt 0:00:22]} Rxe2 {[%emt 0:00:05]} 38. f3 {[%emt 0:00:57]} f4 {[%emt 0:01:26]} 39. gxf4 {[%emt 0:00:43]} Rf2 {[%emt 0:01:26]} 40. f5 {[%emt 0:01:47]} Rxf3 {[%emt 0:00:09]} 41. fxe6 {[%emt 0:00:06]} fxe6 {[%emt 0:00:03]} 42. h4 {[%emt 0:00:54]} Rf4+ {[%emt 0:01:13]} 43. Kb5 {[%emt 0:00:45]} Kd5 {[%emt 0:00:01]} 44. Rh8 {[%emt 0:01:14]} e5 {[%emt 0:02:12]} 45. h5 {[%emt 0:00:11]} Ke6 {[%emt 0:00:09]} 46. h6 {[%emt 0:00:15]} Kf7 {[%emt 0:00:46]} 47. h7 {[%emt 0:00:21]} Kg7 {[%emt 0:00:02]} 48. Re8 {[%emt 0:00:07]} Kxh7 {[%emt 0:00:03]} 49. Rxe5 {[%emt 0:00:05]} Kg6 {[%emt 0:00:17]} 50. Kc5 {[%emt 0:00:43]} Kf6 {[%emt 0:00:48]} 51. Re8 {[%emt 0:00:22]} Kf7 {[%emt 0:00:07]} 52. Re3 {[%emt 0:00:12]} Rf5+ {[%emt 0:00:05]} 53. Kc6 {[%emt 0:00:15]} Rf6+ {[%emt 0:00:05]} 54. Kc7 {[%emt 0:00:32]} Rf5 {[%emt 0:00:02]} 55. Kb6 {[%emt 0:00:09]} 1-0

[Event "Kragero Resort A 2020"]
[Site "Kragero"]
[Date "2020.02.22"]
[Round "8.26"]
[White "Vitenberg, Noam Aviv"]
[Black "Gjestemoen-VonHirsch, Andre"]
[Result "1-0"]
[ECO "A09"]
[WhiteElo "2276"]
[BlackElo "1999"]
[Annotator "ChessBase"]
[PlyCount "66"]
[EventDate "2020.02.19"]
[EventType "swiss"]
[EventCountry "NOR"]
[SourceTitle "playchess.com"]
[Source "ChessBase"]
[SourceQuality "1"]
[TimeControl "5400+30"]

1. Nf3 {[%emt 0:00:00]} d5 {[%emt 0:00:29]} 2. c4 {[%emt 0:00:00]} d4 {[%emt 0:00:06]} 3. b4 {[%emt 0:00:00]} f6 {[%emt 0:00:06]} 4. e3 {[%emt 0:00:56]} e5 {[%emt 0:00:08]} 5. c5 {[%emt 0:00:37]} a5 {[%emt 0:01:20]} 6. Qa4+ {[%emt 0:00:56]} Bd7 {[%emt 0:00:49]} 7. b5 {[%emt 0:00:16]} Bxc5 {[%emt 0:01:38]} 8. Bc4 {[%emt 0:00:08]} Ne7 {[%emt 0:19:25]} 9. Ba3 {[%emt 0:00:17]} Na6 {[%emt 0:05:08]} 10. O-O {[%emt 0:01:19]} Nb4 {[%emt 0:03:25]} 11. exd4 {[%emt 0:10:45]} exd4 {[%emt 0:02:02]} 12. d3 {[%emt 0:01:56]} Bf5 {[%emt 0:06:56]} 13. Qb3 {[%emt 0:14:03]} Qd6 {[%emt 0:05:40]} 14. Re1 {[%emt 0:08:16]} O-O-O {[%emt 0:06:27]} 15. Nbd2 {[%emt 0:00:44]} Nbd5 {[%emt 0:08:10]} 16. Bxd5 {[%emt 0:16:22]} Nxd5 {[%emt 0:08:55]} 17. Nc4 {[%emt 0:08:17]} Qf8 {[%emt 0:00:33]} 18. Nxd4 {[%emt 0:02:48]} Bxd4 {[%emt 0:02:45]} 19. Bxf8 {[%emt 0:00:57]} Bxa1 {[%emt 0:09:12]} 20. Rxa1 {[%emt 0:05:58]} Rhxf8 {[%emt 0:00:07]} 21. Nxa5 {[%emt 0:01:58]} Nf4 {[%emt 0:00:48]} 22. b6 {[%emt 0:01:41]} c6 {[%emt 0:01:34]} 23. Qc4 {[%emt 0:06:02]} Ne2+ {[%emt 0:01:32]} 24. Kh1 {[%emt 0:00:18]} Rd6 {[%emt 0:01:14]} 25. Qc5 {[%emt 0:01:11]} Rfd8 {[%emt 0:01:02]} 26. Qxf5+ {[%emt 0:00:06]} Kb8 {[%emt 0:00:04]} 27. Qg4 {[%emt 0:01:41]} Nc3 {[%emt 0:00:29]} 28. Qxg7 {[%emt 0:00:30]} R6d7 {[%emt 0:00:01]} 29. Qxf6 {[%emt 0:00:44]} Rxd3 {[%emt 0:00:09]} 30. h3 {[%emt 0:00:32]} Nb5 {[%emt 0:00:56]} 31. a4 {[%emt 0:00:24]} Nc3 {[%emt 0:00:17]} 32. Nc4 {[%emt 0:00:21]} R3d4 {[%emt 0:00:40]} 33. Qe5+ {[%emt 0:00:13]} Ka8 {[%emt 0:00:28]} 1-0

[Event "Kragero Resort A 2020"]
[Site "Kragero"]
[Date "2020.02.22"]
[Round "8.27"]
[White "Pevar, Andrew"]
[Black "Brodtkorb, Lars Johan"]
[Result "0-1"]
[ECO "A13"]
[WhiteElo "1998"]
[BlackElo "2179"]
[Annotator "ChessBase"]
[PlyCount "88"]
[EventDate "2020.02.19"]
[EventType "swiss"]
[EventCountry "NOR"]
[SourceTitle "playchess.com"]
[Source "ChessBase"]
[SourceQuality "1"]
[TimeControl "5400+30"]

1. Nf3 {[%emt 0:00:14]} d5 {[%emt 0:00:00]} 2. c4 {[%emt 0:00:05]} e6 {[%emt 0:00:00]} 3. g3 {[%emt 0:00:08]} Nf6 {[%emt 0:00:00]} 4. Bg2 {[%emt 0:00:07]} d4 {[%emt 0:00:02]} 5. O-O {[%emt 0:02:00]} c5 {[%emt 0:00:17]} 6. e3 {[%emt 0:03:10]} Nc6 {[%emt 0:00:10]} 7. exd4 {[%emt 0:00:35]} cxd4 {[%emt 0:00:08]} 8. d3 {[%emt 0:00:08]} Bd6 {[%emt 0:00:11]} 9. Re1 {[%emt 0:01:51]} O-O {[%emt 0:00:31]} 10. a3 {[%emt 0:01:15]} a5 {[%emt 0:01:09]} 11. Nbd2 {[%emt 0:01:04]} Bd7 {[%emt 0:06:05]} 12. Qc2 {[%emt 0:01:19]} Re8 {[%emt 0:14:36]} 13. Ne4 {[%emt 0:01:52]} Nxe4 {[%emt 0:03:35]} 14. Rxe4 {[%emt 0:01:16]} e5 {[%emt 0:01:06]} 15. Bg5 {[%emt 0:04:56]} f6 {[%emt 0:02:44]} 16. Bd2 {[%emt 0:00:11]} Bc5 {[%emt 0:06:29]} 17. Rb1 {[%emt 0:05:07]} a4 {[%emt 0:00:29]} 18. Ree1 {[%emt 0:02:20]} Na5 {[%emt 0:07:32]} 19. Bb4 {[%emt 0:07:51]} Qb6 {[%emt 0:06:51]} 20. Bxc5 {[%emt 0:00:52]} Qxc5 {[%emt 0:00:02]} 21. Nd2 {[%emt 0:01:03]} f5 {[%emt 0:05:23]} 22. g4 {[%emt 0:16:54]} fxg4 {[%emt 0:11:08]} 23. Bd5+ {[%emt 0:05:32]} Kh8 {[%emt 0:00:52]} 24. Ne4 {[%emt 0:00:12]} Qe7 {[%emt 0:01:20]} 25. Qe2 {[%emt 0:00:58]} Rf8 {[%emt 0:07:32]} 26. Ng3 {[%emt 0:15:54]} Rae8 {[%emt 0:00:56]} 27. Qe4 {[%emt 0:04:07]} Nb3 {[%emt 0:01:04]} 28. Qg2 {[%emt 0:01:57]} Nd2 {[%emt 0:04:15]} 29. Bxb7 {[%emt 0:01:16]} Rb8 {[%emt 0:04:36]} 30. Bd5 {[%emt 0:04:21]} Rb3 {[%emt 0:09:45]} 31. c5 {[%emt 0:01:41]} Rxd3 {[%emt 0:01:19]} 32. c6 {[%emt 0:00:04]} Nxb1 {[%emt 0:04:09]} 33. Rxb1 {[%emt 0:00:04]} Be6 {[%emt 0:00:38]} 34. Be4 {[%emt 0:00:15]} Rd2 {[%emt 0:01:23]} 35. Rc1 {[%emt 0:00:35]} Bb3 {[%emt 0:00:34]} 36. Nf5 {[%emt 0:00:14]} Qc7 {[%emt 0:00:35]} 37. Qxg4 {[%emt 0:00:22]} d3 {[%emt 0:00:24]} 38. Qg5 {[%emt 0:01:12]} Rc2 {[%emt 0:00:31]} 39. Bxd3 {[%emt 0:00:08]} Rxc1+ {[%emt 0:00:30]} 40. Qxc1 {[%emt 0:00:05]} Bd5 {[%emt 0:00:26]} 41. Qc5 {[%emt 0:00:35]} Rd8 {[%emt 0:00:02]} 42. Ne7 {[%emt 0:01:38]} Bf3 {[%emt 0:00:22]} 43. Bc2 {[%emt 0:00:02]} Rd6 {[%emt 0:00:58]} 44. Qxe5 {[%emt 0:01:18]} Rd1+ {[%emt 0:00:16]} 0-1

[Event "Kragero Resort A 2020"]
[Site "Kragero"]
[Date "2020.02.22"]
[Round "8.28"]
[White "Petursson, Gudni"]
[Black "Birkisson, Bardur Orn"]
[Result "1/2-1/2"]
[ECO "D12"]
[WhiteElo "2026"]
[BlackElo "2186"]
[Annotator "NA"]
[PlyCount "38"]
[EventDate "2020.02.19"]
[EventType "swiss"]
[EventCountry "NOR"]
[SourceTitle "playchess.com"]
[Source "ChessBase"]
[SourceQuality "1"]
[TimeControl "5400+30"]

1. d4 {[%emt 0:04:28]} d5 {[%emt 0:00:00]} 2. c4 {[%emt 0:00:05]} c6 {[%emt 0:00:03]} 3. e3 {[%emt 0:00:05]} Nf6 {[%emt 0:00:09]} 4. Nf3 {[%emt 0:00:04]} Bf5 {[%emt 0:00:23]} 5. Nc3 {[%emt 0:00:05]} e6 {[%emt 0:00:16]} 6. Bd3 {[%emt 0:00:30]} Bxd3 {[%emt 0:03:26]} 7. Qxd3 {[%emt 0:00:06]} Bd6 {[%emt 0:01:11]} 8. O-O {[%emt 0:00:10]} Nbd7 {[%emt 0:01:53]} 9. e4 {[%emt 0:01:04]} dxc4 {[%emt 0:05:50]} 10. Qxc4 {[%emt 0:00:10]} e5 {[%emt 0:00:08]} 11. Bg5 {[%emt 0:06:06]} h6 {[%emt 0:05:15]} 12. Bh4 {[%emt 0:01:00]} O-O {[%emt 0:01:02]} 13. Rad1 {[%emt 0:00:10]} Qe7 {[%emt 0:00:39]} 14. dxe5 {[%emt 0:00:35]} Nxe5 {[%emt 0:01:24]} 15. Nxe5 {[%emt 0:00:10]} Bxe5 {[%emt 0:01:22]} 16. f4 {[%emt 0:00:20]} Bxc3 {[%emt 0:02:10]} 17. Qxc3 {[%emt 0:00:15]} Qxe4 {[%emt 0:27:10]} 18. Bxf6 {[%emt 0:02:56]} gxf6 {[%emt 0:00:09]} 19. Qxf6 {[%emt 0:00:21]} Qg6 {[%emt 0:00:28]} 1/2-1/2